[Event "Titled Tuesday Blitz February 28 Late 2023"]
[White "Zampronha, Wladimir Camilo"]
[Black "Thomforde-Toates, Noah"]
[WhiteFideId "2103087"]
[BlackFideId "30951992"]
[WhiteElo "2176"]
[BlackElo "2632"]
[Result "0-1"]
[Round "04"]
[TimeControl "180+2"]
[Date "2023.02.28"]
[WhiteClock "0:00:11"]
[BlackClock "0:00:44"]

1. e4 {[%clk 0:03:00]}  c5 {[%clk 0:02:50]} 2. Nf3 {[%clk 0:03:01]}  g6 {[%clk 0:02:50]} 3. d4 {[%clk 0:03:01]}  cxd4 {[%clk 0:02:50]} 4. Nxd4 {[%clk 0:03:02]}  Bg7 {[%clk 0:02:50]} 5. Nc3 {[%clk 0:03:02]}  Nc6 {[%clk 0:02:50]} 6. Be3 {[%clk 0:03:03]}  Nf6 {[%clk 0:02:49]} 7. Bc4 {[%clk 0:03:03]}  O-O {[%clk 0:02:49]} 8. Bb3 {[%clk 0:03:03]}  d6 {[%clk 0:02:49]} 9. f3 {[%clk 0:03:03]}  Nxd4 {[%clk 0:02:49]} 10. Bxd4 {[%clk 0:03:03]}  Be6 {[%clk 0:02:50]} 11. Qd2 {[%clk 0:02:59]}  Qa5 {[%clk 0:02:49]} 12. O-O-O {[%clk 0:02:50]}  Rfc8 {[%clk 0:02:49]} 13. Kb1 {[%clk 0:02:48]}  a6 {[%clk 0:02:40]} 14. Nd5 {[%clk 0:02:41]}  Qxd2 {[%clk 0:02:38]} 15. Nxf6+ {[%clk 0:02:39]}  Bxf6 {[%clk 0:02:37]} 16. Rxd2 {[%clk 0:02:40]}  Bg5 {[%clk 0:02:34]} 17. Bxe6 {[%clk 0:02:30]}  fxe6 {[%clk 0:02:33]} 18. Rdd1 {[%clk 0:02:29]}  e5 {[%clk 0:02:32]} 19. Bf2 {[%clk 0:02:20]}  h5 {[%clk 0:02:25]} 20. Rd5 {[%clk 0:02:19]}  Kf7 {[%clk 0:02:24]} 21. Rhd1 {[%clk 0:02:17]}  Ke6 {[%clk 0:02:23]} 22. a4 {[%clk 0:02:07]}  Bf4 {[%clk 0:02:23]} 23. h3 {[%clk 0:01:58]}  Bh6 {[%clk 0:02:07]} 24. R1d3 {[%clk 0:01:56]}  Rc4 {[%clk 0:02:06]} 25. Rb3 {[%clk 0:01:52]}  b5 {[%clk 0:01:52]} 26. axb5 {[%clk 0:01:50]}  axb5 {[%clk 0:01:52]} 27. Rdxb5 {[%clk 0:01:45]}  Rca4 {[%clk 0:01:51]} 28. Ra3 {[%clk 0:01:27]}  Rxa3 {[%clk 0:01:50]} 29. bxa3 {[%clk 0:01:28]}  Rxa3 {[%clk 0:01:50]} 30. Kb2 {[%clk 0:01:26]}  Ra6 {[%clk 0:01:50]} 31. Rb8 {[%clk 0:01:25]}  Kf7 {[%clk 0:01:43]} 32. Rb7 {[%clk 0:01:19]}  Bg5 {[%clk 0:01:42]} 33. Rb6 {[%clk 0:01:15]}  Ra4 {[%clk 0:01:39]} 34. Rb3 {[%clk 0:01:14]}  Rc4 {[%clk 0:01:37]} 35. Rb7 {[%clk 0:01:08]}  Ke6 {[%clk 0:01:35]} 36. Rb8 {[%clk 0:01:06]}  Bf6 {[%clk 0:01:23]} 37. Rb3 {[%clk 0:00:57]}  Rc7 {[%clk 0:01:21]} 38. Rc3 {[%clk 0:00:55]}  Rd7 {[%clk 0:01:14]} 39. Rb3 {[%clk 0:00:54]}  Kf7 {[%clk 0:01:15]} 40. Kb1 {[%clk 0:00:53]}  e6 {[%clk 0:01:14]} 41. Rb6 {[%clk 0:00:51]}  d5 {[%clk 0:01:14]} 42. Rb4 {[%clk 0:00:48]}  Be7 {[%clk 0:01:11]} 43. Ra4 {[%clk 0:00:46]}  Rb7+ {[%clk 0:01:10]} 44. Kc1 {[%clk 0:00:46]}  Bg5+ {[%clk 0:01:10]} 45. Kd1 {[%clk 0:00:43]}  Rb1+ {[%clk 0:01:08]} 46. Ke2 {[%clk 0:00:43]}  Rc1 {[%clk 0:00:57]} 47. Ra2 {[%clk 0:00:36]}  Kf6 {[%clk 0:00:55]} 48. Be3 {[%clk 0:00:30]}  Bxe3 {[%clk 0:00:54]} 49. Kxe3 {[%clk 0:00:31]}  Re1+ {[%clk 0:00:47]} 50. Kf2 {[%clk 0:00:31]}  Rc1 {[%clk 0:00:46]} 51. Ke2 {[%clk 0:00:27]}  h4 {[%clk 0:00:46]} 52. Rb2 {[%clk 0:00:23]}  Kg5 {[%clk 0:00:44]} 53. Kf2 {[%clk 0:00:21]}  Kf4 {[%clk 0:00:44]} 54. Rb6 {[%clk 0:00:20]}  Rxc2+ {[%clk 0:00:43]} 55. Kf1 {[%clk 0:00:19]}  d4 {[%clk 0:00:44]} 56. Rxe6 {[%clk 0:00:19]}  Ke3 {[%clk 0:00:44]} 57. Kg1 {[%clk 0:00:17]}  d3 {[%clk 0:00:44]} 58. Rd6 {[%clk 0:00:13]}  d2 {[%clk 0:00:44]} 59. Kh2 {[%clk 0:00:11]}  Rc1 {[%clk 0:00:44]} 0-1


[Site "https://www.chess.com"]

[Event "Titled Tuesday Blitz February 28 Late 2023"]
[White "Matsuura, Frederico"]
[Black "Gunduz, Umut Erdem"]
[WhiteFideId "2107848"]
[BlackFideId "6381383"]
[WhiteElo "2302"]
[BlackElo "2182"]
[Result "0-1"]
[Round "04"]
[TimeControl "180+2"]
[Date "2023.02.28"]
[WhiteClock "0:00:01"]
[BlackClock "0:00:37"]

1. d4 {[%clk 0:03:00]}  Nf6 {[%clk 0:02:59]} 2. Bg5 {[%clk 0:02:58]}  Ne4 {[%clk 0:02:59]} 3. Bh4 {[%clk 0:02:58]}  d5 {[%clk 0:02:59]} 4. f3 {[%clk 0:02:59]}  Nd6 {[%clk 0:02:59]} 5. Nc3 {[%clk 0:02:58]}  c6 {[%clk 0:02:56]} 6. e4 {[%clk 0:02:58]}  Qa5 {[%clk 0:02:50]} 7. Qd2 {[%clk 0:02:51]}  e6 {[%clk 0:02:48]} 8. Bd3 {[%clk 0:02:33]}  Nd7 {[%clk 0:02:45]} 9. Nge2 {[%clk 0:02:29]}  Nb6 {[%clk 0:02:44]} 10. exd5 {[%clk 0:02:11]}  cxd5 {[%clk 0:02:42]} 11. O-O {[%clk 0:01:56]}  Ndc4 {[%clk 0:02:35]} 12. Qg5 {[%clk 0:01:51]}  f6 {[%clk 0:02:28]} 13. Qh5+ {[%clk 0:01:49]}  Kd8 {[%clk 0:02:24]} 14. Qf7 {[%clk 0:01:39]}  Nd6 {[%clk 0:02:14]} 15. Bxf6+ {[%clk 0:01:36]}  gxf6 {[%clk 0:02:02]} 16. Qxf6+ {[%clk 0:01:36]}  Kc7 {[%clk 0:01:57]} 17. Qxh8 {[%clk 0:01:34]}  Bd7 {[%clk 0:01:58]} 18. Qxh7 {[%clk 0:01:29]}  Nbc4 {[%clk 0:01:57]} 19. b3 {[%clk 0:01:05]}  Nb2 {[%clk 0:01:57]} 20. Bg6 {[%clk 0:00:59]}  b5 {[%clk 0:01:51]} 21. a3 {[%clk 0:00:47]}  Qb6 {[%clk 0:01:31]} 22. Rfb1 {[%clk 0:00:45]}  Rd8 {[%clk 0:01:12]} 23. Rxb2 {[%clk 0:00:44]}  Kb8 {[%clk 0:01:13]} 24. Kh1 {[%clk 0:00:39]}  Bc8 {[%clk 0:01:12]} 25. a4 {[%clk 0:00:36]}  b4 {[%clk 0:01:12]} 26. Nb5 {[%clk 0:00:36]}  a6 {[%clk 0:01:03]} 27. Nxd6 {[%clk 0:00:32]}  Bxd6 {[%clk 0:01:04]} 28. a5 {[%clk 0:00:29]}  Qb5 {[%clk 0:01:03]} 29. Bd3 {[%clk 0:00:22]}  Qc6 {[%clk 0:01:03]} 30. c4 {[%clk 0:00:18]}  bxc3 {[%clk 0:01:02]} 31. Rc2 {[%clk 0:00:18]}  Bb4 {[%clk 0:01:02]} 32. Qh4 {[%clk 0:00:16]}  Rf8 {[%clk 0:00:54]} 33. Qg3+ {[%clk 0:00:13]}  Bd6 {[%clk 0:00:54]} 34. Qg7 {[%clk 0:00:12]}  Qe8 {[%clk 0:00:51]} 35. Rxc3 {[%clk 0:00:09]}  Qh5 {[%clk 0:00:52]} 36. f4 {[%clk 0:00:05]}  Rh8 {[%clk 0:00:50]} 37. h3 {[%clk 0:00:01]}  Qe8 {[%clk 0:00:37]} 0-1


[Site "https://www.chess.com"]

[Event "Titled Tuesday Blitz February 28 Late 2023"]
[White "Makridis, Dimitrios"]
[Black "Urbina Perez, Juan Antonio"]
[WhiteFideId "25864475"]
[BlackFideId "2217368"]
[WhiteElo "2277"]
[BlackElo "2197"]
[Result "1-0"]
[Round "04"]
[TimeControl "180+2"]
[Date "2023.02.28"]
[WhiteClock "0:01:06"]
[BlackClock "0:00:03"]

1. b3 {[%clk 0:02:56]}  d5 {[%clk 0:02:55]} 2. Bb2 {[%clk 0:02:57]}  Bf5 {[%clk 0:02:55]} 3. e3 {[%clk 0:02:55]}  e6 {[%clk 0:02:56]} 4. g4 {[%clk 0:02:55]}  Bg6 {[%clk 0:02:53]} 5. h4 {[%clk 0:02:54]}  h5 {[%clk 0:02:52]} 6. g5 {[%clk 0:02:52]}  Nc6 {[%clk 0:02:48]} 7. Nf3 {[%clk 0:02:49]}  Nge7 {[%clk 0:02:44]} 8. c4 {[%clk 0:02:45]}  dxc4 {[%clk 0:02:37]} 9. Bxc4 {[%clk 0:02:44]}  Nd5 {[%clk 0:02:34]} 10. a3 {[%clk 0:02:38]}  a6 {[%clk 0:02:34]} 11. Nc3 {[%clk 0:02:37]}  Qd7 {[%clk 0:02:31]} 12. Nxd5 {[%clk 0:02:36]}  exd5 {[%clk 0:02:32]} 13. Be2 {[%clk 0:02:36]}  O-O-O {[%clk 0:02:31]} 14. b4 {[%clk 0:02:37]}  Be4 {[%clk 0:02:15]} 15. d3 {[%clk 0:02:36]}  Bxf3 {[%clk 0:02:14]} 16. Bxf3 {[%clk 0:02:37]}  d4 {[%clk 0:02:06]} 17. Rc1 {[%clk 0:02:26]}  dxe3 {[%clk 0:01:55]} 18. fxe3 {[%clk 0:02:27]}  Qxd3 {[%clk 0:01:46]} 19. Qxd3 {[%clk 0:02:20]}  Rxd3 {[%clk 0:01:47]} 20. Ke2 {[%clk 0:02:19]}  Rd6 {[%clk 0:01:45]} 21. Rhd1 {[%clk 0:02:16]}  Rg8 {[%clk 0:01:39]} 22. Rxd6 {[%clk 0:02:15]}  Bxd6 {[%clk 0:01:40]} 23. Bxh5 {[%clk 0:02:13]}  g6 {[%clk 0:01:35]} 24. Bg4+ {[%clk 0:02:13]}  Kb8 {[%clk 0:01:33]} 25. Rf1 {[%clk 0:02:13]}  Ne5 {[%clk 0:01:25]} 26. Bxe5 {[%clk 0:02:05]}  Bxe5 {[%clk 0:01:26]} 27. Rxf7 {[%clk 0:02:05]}  Bg3 {[%clk 0:01:26]} 28. Be6 {[%clk 0:01:57]}  Bxh4 {[%clk 0:01:22]} 29. Rh7 {[%clk 0:01:54]}  Re8 {[%clk 0:01:19]} 30. Bf7 {[%clk 0:01:54]}  Re4 {[%clk 0:01:18]} 31. Bxg6 {[%clk 0:01:53]}  Rg4 {[%clk 0:01:17]} 32. Rh8+ {[%clk 0:01:48]}  Ka7 {[%clk 0:01:17]} 33. Bf5 {[%clk 0:01:46]}  Rxg5 {[%clk 0:01:16]} 34. e4 {[%clk 0:01:45]}  Bg3 {[%clk 0:01:14]} 35. Re8 {[%clk 0:01:44]}  Kb6 {[%clk 0:01:04]} 36. Kf3 {[%clk 0:01:43]}  Bd6 {[%clk 0:01:02]} 37. Re6 {[%clk 0:01:42]}  a5 {[%clk 0:00:59]} 38. Kf2 {[%clk 0:01:34]}  axb4 {[%clk 0:00:55]} 39. axb4 {[%clk 0:01:35]}  Kb5 {[%clk 0:00:55]} 40. Ke3 {[%clk 0:01:29]}  Kxb4 {[%clk 0:00:52]} 41. Kd4 {[%clk 0:01:28]}  b5 {[%clk 0:00:45]} 42. Re8 {[%clk 0:01:25]}  c6 {[%clk 0:00:41]} 43. Rd8 {[%clk 0:01:22]}  Bc5+ {[%clk 0:00:40]} 44. Ke5 {[%clk 0:01:22]}  Rg7 {[%clk 0:00:34]} 45. Rd1 {[%clk 0:01:20]}  Re7+ {[%clk 0:00:32]} 46. Kf6 {[%clk 0:01:20]}  Re8 {[%clk 0:00:30]} 47. Rb1+ {[%clk 0:01:19]}  Ka5 {[%clk 0:00:30]} 48. Rd1 {[%clk 0:01:13]}  Kb6 {[%clk 0:00:29]} 49. e5 {[%clk 0:01:12]}  b4 {[%clk 0:00:29]} 50. e6 {[%clk 0:01:12]}  Rf8+ {[%clk 0:00:28]} 51. Kg6 {[%clk 0:01:10]}  Kb5 {[%clk 0:00:24]} 52. Bd3+ {[%clk 0:01:09]}  Ka4 {[%clk 0:00:22]} 53. Bc4 {[%clk 0:01:09]}  b3 {[%clk 0:00:21]} 54. Rb1 {[%clk 0:01:09]}  Rb8 {[%clk 0:00:20]} 55. Ra1+ {[%clk 0:01:07]}  Kb4 {[%clk 0:00:18]} 56. Bxb3 {[%clk 0:01:08]}  Kc3 {[%clk 0:00:18]} 57. Rc1+ {[%clk 0:01:06]}  Kd4 {[%clk 0:00:14]} 58. Rc4+ {[%clk 0:01:05]}  Kd3 {[%clk 0:00:03]} 59. Rxc5 {[%clk 0:01:05]}  Rxb3 {[%clk 0:00:03]} 60. e7 {[%clk 0:01:06]} 1-0


[Site "https://www.chess.com"]

[Event "Titled Tuesday Blitz February 28 Late 2023"]
[White "Petukhov, Dmitry"]
[Black "Fernandez Guillen, Ernesto J."]
[WhiteFideId "4142748"]
[BlackFideId "3512428"]
[WhiteElo "2311"]
[BlackElo "2423"]
[Result "0-1"]
[Round "04"]
[TimeControl "180+2"]
[Date "2023.02.28"]
[WhiteClock "0:02:06"]
[BlackClock "0:02:44"]

1. e4 {[%clk 0:02:41]}  e5 {[%clk 0:02:59]} 2. Nf3 {[%clk 0:02:40]}  Nc6 {[%clk 0:03:00]} 3. Bb5 {[%clk 0:02:41]}  f5 {[%clk 0:02:57]} 4. d4 {[%clk 0:02:38]}  fxe4 {[%clk 0:02:57]} 5. Bxc6 {[%clk 0:02:39]}  bxc6 {[%clk 0:02:57]} 6. Nxe5 {[%clk 0:02:39]}  Nf6 {[%clk 0:02:57]} 7. O-O {[%clk 0:02:27]}  Bd6 {[%clk 0:02:58]} 8. Nc3 {[%clk 0:02:22]}  O-O {[%clk 0:02:57]} 9. Qe2 {[%clk 0:02:15]}  Qe8 {[%clk 0:02:55]} 10. Nxe4 {[%clk 0:02:12]}  Bxe5 {[%clk 0:02:50]} 11. dxe5 {[%clk 0:02:10]}  Qxe5 {[%clk 0:02:51]} 12. Re1 {[%clk 0:02:06]}  Nxe4 {[%clk 0:02:44]} 0-1


[Site "https://www.chess.com"]

[Event "Titled Tuesday Blitz February 28 Late 2023"]
[White "Sieciechowicz, Marcin"]
[Black "Girsh, Daniel"]
[WhiteFideId "1130170"]
[BlackFideId "30949190"]
[WhiteElo "2302"]
[BlackElo "2075"]
[Result "0-1"]
[Round "04"]
[TimeControl "180+2"]
[Date "2023.02.28"]
[WhiteClock "0:00:02"]
[BlackClock "0:01:28"]

1. d4 {[%clk 0:03:00]}  e6 {[%clk 0:03:00]} 2. c4 {[%clk 0:03:00]}  Nf6 {[%clk 0:02:51]} 3. Nc3 {[%clk 0:02:57]}  Bb4 {[%clk 0:02:46]} 4. Nf3 {[%clk 0:02:56]}  O-O {[%clk 0:02:44]} 5. Bg5 {[%clk 0:02:50]}  h6 {[%clk 0:02:44]} 6. Bh4 {[%clk 0:02:50]}  d5 {[%clk 0:02:43]} 7. cxd5 {[%clk 0:02:49]}  g5 {[%clk 0:02:42]} 8. Bg3 {[%clk 0:02:35]}  Nxd5 {[%clk 0:02:40]} 9. Rc1 {[%clk 0:02:32]}  c5 {[%clk 0:02:41]} 10. e4 {[%clk 0:01:59]}  Nxc3 {[%clk 0:02:39]} 11. bxc3 {[%clk 0:01:59]}  Ba3 {[%clk 0:02:39]} 12. Rb1 {[%clk 0:01:52]}  cxd4 {[%clk 0:02:39]} 13. cxd4 {[%clk 0:01:48]}  Nc6 {[%clk 0:02:39]} 14. Bc4 {[%clk 0:01:41]}  Qa5+ {[%clk 0:02:39]} 15. Kf1 {[%clk 0:01:41]}  Qc3 {[%clk 0:02:36]} 16. Qb3 {[%clk 0:01:32]}  Qxb3 {[%clk 0:02:35]} 17. Bxb3 {[%clk 0:01:28]}  Rd8 {[%clk 0:02:31]} 18. d5 {[%clk 0:01:11]}  exd5 {[%clk 0:02:32]} 19. Bxd5 {[%clk 0:01:05]}  Be6 {[%clk 0:02:31]} 20. Bxe6 {[%clk 0:00:59]}  fxe6 {[%clk 0:02:32]} 21. h4 {[%clk 0:00:52]}  g4 {[%clk 0:02:29]} 22. Ne5 {[%clk 0:00:49]}  Nxe5 {[%clk 0:02:23]} 23. Bxe5 {[%clk 0:00:50]}  b6 {[%clk 0:02:24]} 24. Bf4 {[%clk 0:00:25]}  Kg7 {[%clk 0:02:21]} 25. Kg1 {[%clk 0:00:19]}  Bd6 {[%clk 0:02:10]} 26. Be3 {[%clk 0:00:14]}  Be5 {[%clk 0:02:09]} 27. g3 {[%clk 0:00:12]}  Rd3 {[%clk 0:02:06]} 28. Kg2 {[%clk 0:00:11]}  Rc8 {[%clk 0:02:05]} 29. Rhc1 {[%clk 0:00:11]}  Rcc3 {[%clk 0:02:03]} 30. Rxc3 {[%clk 0:00:10]}  Rxc3 {[%clk 0:02:04]} 31. Rd1 {[%clk 0:00:10]}  Ra3 {[%clk 0:01:56]} 32. Rd7+ {[%clk 0:00:10]}  Kg6 {[%clk 0:01:55]} 33. Re7 {[%clk 0:00:10]}  Kf6 {[%clk 0:01:54]} 34. Rh7 {[%clk 0:00:09]}  Rxa2 {[%clk 0:01:54]} 35. h5 {[%clk 0:00:06]}  b5 {[%clk 0:01:46]} 36. Bxh6 {[%clk 0:00:06]}  b4 {[%clk 0:01:45]} 37. Bg7+ {[%clk 0:00:06]}  Kg5 {[%clk 0:01:37]} 38. Bxe5 {[%clk 0:00:05]}  b3 {[%clk 0:01:32]} 39. Rb7 {[%clk 0:00:03]}  Kxh5 {[%clk 0:01:29]} 40. Rxb3 {[%clk 0:00:03]}  a5 {[%clk 0:01:29]} 41. Bf4 {[%clk 0:00:02]}  Kg6 {[%clk 0:01:28]} 0-1


[Site "https://www.chess.com"]

[Event "Titled Tuesday Blitz February 28 Late 2023"]
[White "Martynov, Pavel"]
[Black "Golubev, Mikhail"]
[WhiteFideId "4101260"]
[BlackFideId "14100983"]
[WhiteElo "2314"]
[BlackElo "2374"]
[Result "0-1"]
[Round "04"]
[TimeControl "180+2"]
[Date "2023.02.28"]
[WhiteClock "0:00:09"]
[BlackClock "0:01:00"]

1. e4 {[%clk 0:03:00]}  c5 {[%clk 0:02:59]} 2. Nf3 {[%clk 0:02:59]}  d6 {[%clk 0:02:58]} 3. Bb5+ {[%clk 0:02:59]}  Bd7 {[%clk 0:02:59]} 4. Bxd7+ {[%clk 0:02:59]}  Nxd7 {[%clk 0:03:00]} 5. O-O {[%clk 0:02:58]}  Ngf6 {[%clk 0:03:00]} 6. Re1 {[%clk 0:02:51]}  e6 {[%clk 0:02:56]} 7. c3 {[%clk 0:02:51]}  Be7 {[%clk 0:02:56]} 8. d4 {[%clk 0:02:51]}  O-O {[%clk 0:02:56]} 9. h3 {[%clk 0:02:51]}  Rc8 {[%clk 0:02:50]} 10. Bf4 {[%clk 0:02:49]}  d5 {[%clk 0:02:37]} 11. e5 {[%clk 0:02:48]}  Ne4 {[%clk 0:02:37]} 12. Nbd2 {[%clk 0:02:48]}  Nxd2 {[%clk 0:02:32]} 13. Qxd2 {[%clk 0:02:48]}  Qb6 {[%clk 0:02:21]} 14. h4 {[%clk 0:02:41]}  cxd4 {[%clk 0:02:19]} 15. Nxd4 {[%clk 0:02:37]}  Bxh4 {[%clk 0:02:14]} 16. g3 {[%clk 0:02:36]}  Be7 {[%clk 0:02:13]} 17. Kg2 {[%clk 0:02:35]}  Bc5 {[%clk 0:02:06]} 18. Nf3 {[%clk 0:02:32]}  f5 {[%clk 0:01:57]} 19. Rh1 {[%clk 0:02:25]}  Be7 {[%clk 0:01:52]} 20. Rh3 {[%clk 0:02:22]}  Rf7 {[%clk 0:01:52]} 21. Rah1 {[%clk 0:02:20]}  Nf8 {[%clk 0:01:51]} 22. Bg5 {[%clk 0:02:09]}  Rc4 {[%clk 0:01:44]} 23. Bxe7 {[%clk 0:02:03]}  Rxe7 {[%clk 0:01:45]} 24. Qg5 {[%clk 0:02:03]}  Qc7 {[%clk 0:01:40]} 25. Nd4 {[%clk 0:01:58]}  Rf7 {[%clk 0:01:27]} 26. f4 {[%clk 0:01:55]}  Rxd4 {[%clk 0:01:22]} 27. cxd4 {[%clk 0:01:53]}  Qc2+ {[%clk 0:01:22]} 28. Kf3 {[%clk 0:01:46]}  Qe4+ {[%clk 0:01:10]} 29. Kf2 {[%clk 0:01:35]}  Rc7 {[%clk 0:01:03]} 30. Re1 {[%clk 0:00:09]}  Rc2+ {[%clk 0:01:01]} 31. Kf1 {[%clk 0:00:09]}  Qg2# {[%clk 0:01:00]} 0-1


[Site "https://www.chess.com"]

[Event "Titled Tuesday Blitz February 28 Late 2023"]
[White "Mazurkiewicz, Michal"]
[Black "Zhu, Jiner"]
[WhiteFideId "1124943"]
[BlackFideId "8608059"]
[WhiteElo "2054"]
[BlackElo "2384"]
[Result "1-0"]
[Round "04"]
[TimeControl "180+2"]
[Date "2023.02.28"]
[WhiteClock "0:00:09"]
[BlackClock "0:00:06"]

1. e4 {[%clk 0:03:00]}  e5 {[%clk 0:02:59]} 2. Nf3 {[%clk 0:03:00]}  Nc6 {[%clk 0:02:59]} 3. d3 {[%clk 0:03:00]}  Bc5 {[%clk 0:02:56]} 4. g3 {[%clk 0:03:00]}  Nf6 {[%clk 0:02:54]} 5. Bg2 {[%clk 0:03:00]}  O-O {[%clk 0:02:50]} 6. O-O {[%clk 0:03:00]}  d5 {[%clk 0:02:44]} 7. exd5 {[%clk 0:02:57]}  Nxd5 {[%clk 0:02:45]} 8. Nxe5 {[%clk 0:02:55]}  Nxe5 {[%clk 0:02:42]} 9. d4 {[%clk 0:02:56]}  Bg4 {[%clk 0:02:21]} 10. f3 {[%clk 0:02:56]}  Nxf3+ {[%clk 0:02:10]} 11. Bxf3 {[%clk 0:02:55]}  Bxf3 {[%clk 0:02:07]} 12. Rxf3 {[%clk 0:02:55]}  Bb6 {[%clk 0:02:02]} 13. c4 {[%clk 0:02:43]}  Nf6 {[%clk 0:01:54]} 14. Rd3 {[%clk 0:02:36]}  Re8 {[%clk 0:01:46]} 15. Nc3 {[%clk 0:02:23]}  c6 {[%clk 0:01:42]} 16. Bf4 {[%clk 0:02:15]}  Qd7 {[%clk 0:01:41]} 17. Na4 {[%clk 0:02:02]}  Rad8 {[%clk 0:01:27]} 18. Nxb6 {[%clk 0:02:00]}  axb6 {[%clk 0:01:28]} 19. Qf3 {[%clk 0:01:58]}  Qh3 {[%clk 0:01:21]} 20. Rf1 {[%clk 0:00:55]}  Ng4 {[%clk 0:01:18]} 21. Qg2 {[%clk 0:00:54]}  Qxg2+ {[%clk 0:01:08]} 22. Kxg2 {[%clk 0:00:55]}  h5 {[%clk 0:01:08]} 23. h3 {[%clk 0:00:52]}  Nf6 {[%clk 0:00:58]} 24. Bc7 {[%clk 0:00:52]}  Re2+ {[%clk 0:00:32]} 25. Rf2 {[%clk 0:00:51]}  Rxf2+ {[%clk 0:00:28]} 26. Kxf2 {[%clk 0:00:52]}  Ra8 {[%clk 0:00:28]} 27. a3 {[%clk 0:00:49]}  Nd7 {[%clk 0:00:25]} 28. Re3 {[%clk 0:00:47]}  Rc8 {[%clk 0:00:24]} 29. Bd6 {[%clk 0:00:44]}  b5 {[%clk 0:00:14]} 30. Re7 {[%clk 0:00:40]}  Nf6 {[%clk 0:00:13]} 31. Be5 {[%clk 0:00:32]}  bxc4 {[%clk 0:00:05]} 32. Bxf6 {[%clk 0:00:32]}  gxf6 {[%clk 0:00:06]} 33. Rxb7 {[%clk 0:00:33]}  c5 {[%clk 0:00:05]} 34. Ke3 {[%clk 0:00:22]}  Re8+ {[%clk 0:00:04]} 35. Kd2 {[%clk 0:00:17]}  cxd4 {[%clk 0:00:05]} 36. Rc7 {[%clk 0:00:14]}  c3+ {[%clk 0:00:02]} 37. bxc3 {[%clk 0:00:15]}  dxc3+ {[%clk 0:00:02]} 38. Rxc3 {[%clk 0:00:16]}  Re4 {[%clk 0:00:03]} 39. Kd3 {[%clk 0:00:14]}  Ra4 {[%clk 0:00:02]} 40. Kc2 {[%clk 0:00:13]}  h4 {[%clk 0:00:03]} 41. g4 {[%clk 0:00:13]}  Rf4 {[%clk 0:00:03]} 42. Kb3 {[%clk 0:00:13]}  Kg7 {[%clk 0:00:03]} 43. a4 {[%clk 0:00:13]}  f5 {[%clk 0:00:04]} 44. gxf5 {[%clk 0:00:13]}  Rxf5 {[%clk 0:00:05]} 45. Rc4 {[%clk 0:00:12]}  Rf3+ {[%clk 0:00:03]} 46. Rc3 {[%clk 0:00:12]}  Rf1 {[%clk 0:00:03]} 47. Kb4 {[%clk 0:00:11]}  f5 {[%clk 0:00:03]} 48. a5 {[%clk 0:00:11]}  Kg6 {[%clk 0:00:03]} 49. a6 {[%clk 0:00:12]}  Rb1+ {[%clk 0:00:03]} 50. Rb3 {[%clk 0:00:12]}  Rd1 {[%clk 0:00:04]} 51. a7 {[%clk 0:00:12]}  Rd8 {[%clk 0:00:04]} 52. Ra3 {[%clk 0:00:12]}  Ra8 {[%clk 0:00:05]} 53. Kc5 {[%clk 0:00:12]}  Kg5 {[%clk 0:00:05]} 54. Ra4 {[%clk 0:00:11]}  f4 {[%clk 0:00:05]} 55. Kd4 {[%clk 0:00:11]}  f3 {[%clk 0:00:05]} 56. Ke3 {[%clk 0:00:12]}  Kf5 {[%clk 0:00:02]} 57. Ra5+ {[%clk 0:00:11]}  Ke6 {[%clk 0:00:02]} 58. Kxf3 {[%clk 0:00:12]}  Kd6 {[%clk 0:00:02]} 59. Kg4 {[%clk 0:00:12]}  Kc6 {[%clk 0:00:03]} 60. Kxh4 {[%clk 0:00:12]}  Kb6 {[%clk 0:00:04]} 61. Ra1 {[%clk 0:00:12]}  Kb7 {[%clk 0:00:05]} 62. Kg4 {[%clk 0:00:12]}  Rg8+ {[%clk 0:00:05]} 63. Kf5 {[%clk 0:00:12]}  Ka8 {[%clk 0:00:06]} 64. h4 {[%clk 0:00:11]}  Rh8 {[%clk 0:00:06]} 65. Ra4 {[%clk 0:00:10]}  Rf8+ {[%clk 0:00:06]} 66. Kg6 {[%clk 0:00:10]}  Rg8+ {[%clk 0:00:06]} 67. Kh7 {[%clk 0:00:10]}  Rc8 {[%clk 0:00:06]} 68. h5 {[%clk 0:00:10]}  Rc7+ {[%clk 0:00:07]} 69. Kg6 {[%clk 0:00:10]}  Rc6+ {[%clk 0:00:07]} 70. Kf5 {[%clk 0:00:09]}  Rc5+ {[%clk 0:00:08]} 71. Kg4 {[%clk 0:00:09]}  Rc6 {[%clk 0:00:07]} 72. Kg5 {[%clk 0:00:08]}  Rc5+ {[%clk 0:00:08]} 73. Kh4 {[%clk 0:00:08]}  Rc6 {[%clk 0:00:08]} 74. Ra5 {[%clk 0:00:08]}  Rc1 {[%clk 0:00:07]} 75. h6 {[%clk 0:00:08]}  Rh1+ {[%clk 0:00:07]} 76. Kg5 {[%clk 0:00:09]}  Rg1+ {[%clk 0:00:07]} 77. Kf6 {[%clk 0:00:09]}  Rf1+ {[%clk 0:00:08]} 78. Kg6 {[%clk 0:00:10]}  Rc1 {[%clk 0:00:07]} 79. h7 {[%clk 0:00:10]}  Rc8 {[%clk 0:00:08]} 80. Kg7 {[%clk 0:00:10]}  Rc7+ {[%clk 0:00:08]} 81. Kg6 {[%clk 0:00:10]}  Rc6+ {[%clk 0:00:09]} 82. Kg5 {[%clk 0:00:09]}  Rc8 {[%clk 0:00:09]} 83. Ra6 {[%clk 0:00:10]}  Rh8 {[%clk 0:00:08]} 84. Kg6 {[%clk 0:00:10]}  Rc8 {[%clk 0:00:08]} 85. Rf6 {[%clk 0:00:09]}  Rh8 {[%clk 0:00:08]} 86. Kg7 {[%clk 0:00:09]}  Rc8 {[%clk 0:00:06]} 87. Rf8 {[%clk 0:00:09]} 1-0


[Site "https://www.chess.com"]

[Event "Titled Tuesday Blitz February 28 Late 2023"]
[White "Sielecki, Christof"]
[Black "Rosenberg, Evan S"]
[WhiteFideId "4620437"]
[BlackFideId "2019299"]
[WhiteElo "2443"]
[BlackElo "2433"]
[Result "1-0"]
[Round "04"]
[TimeControl "180+2"]
[Date "2023.02.28"]
[WhiteClock "0:01:21"]
[BlackClock "0:00:11"]

1. e4 {[%clk 0:03:00]}  e5 {[%clk 0:02:59]} 2. Nf3 {[%clk 0:03:00]}  Nc6 {[%clk 0:03:00]} 3. Bb5 {[%clk 0:03:00]}  Nf6 {[%clk 0:03:00]} 4. d3 {[%clk 0:03:00]}  Ne7 {[%clk 0:02:59]} 5. Nc3 {[%clk 0:02:57]}  c6 {[%clk 0:02:59]} 6. Bc4 {[%clk 0:02:57]}  Ng6 {[%clk 0:02:58]} 7. h4 {[%clk 0:02:56]}  h5 {[%clk 0:02:58]} 8. Ng5 {[%clk 0:02:43]}  d5 {[%clk 0:02:58]} 9. exd5 {[%clk 0:02:38]}  cxd5 {[%clk 0:02:56]} 10. Nxd5 {[%clk 0:02:33]}  Nxd5 {[%clk 0:02:54]} 11. Qf3 {[%clk 0:02:30]}  Be6 {[%clk 0:02:49]} 12. Nxe6 {[%clk 0:02:29]}  fxe6 {[%clk 0:02:49]} 13. Bb5+ {[%clk 0:02:29]}  Ke7 {[%clk 0:02:36]} 14. Bg5+ {[%clk 0:02:29]}  Nf6 {[%clk 0:02:37]} 15. Qxb7+ {[%clk 0:02:28]}  Kd6 {[%clk 0:02:26]} 16. c4 {[%clk 0:02:28]}  Qc8 {[%clk 0:01:23]} 17. c5+ {[%clk 0:02:02]}  Qxc5 {[%clk 0:01:18]} 18. Rc1 {[%clk 0:01:56]}  Qxc1+ {[%clk 0:00:19]} 19. Bxc1 {[%clk 0:01:54]}  Rd8 {[%clk 0:00:14]} 20. b3 {[%clk 0:01:43]}  e4 {[%clk 0:00:14]} 21. Ba3+ {[%clk 0:01:34]}  Ke5 {[%clk 0:00:14]} 22. Bb2+ {[%clk 0:01:31]}  Kf4 {[%clk 0:00:12]} 23. Bxf6 {[%clk 0:01:23]}  gxf6 {[%clk 0:00:11]} 24. Qxe4# {[%clk 0:01:21]} 1-0


[Site "https://www.chess.com"]